Cogmind - Beta 13 @@@ ROGUE MODE // 2024.04.08 @ 22:10:54 Player: L_ Result: Destroyed by G-47 Trooper with Particle Gun Performance ------------- Evolutions (2) 1000 Regions Visited (4) 800 Robots Destroyed (31) 155 Value Destroyed (1002) 1002 Prototype IDs (3) 60 Alien Tech Used (0) 0 Bonus (63) 63 TOTAL SCORE: 3080 Bonus ------- High Alert Combat Kills 63 Cogmind --------- Core Integrity 0/550 Matter 98/300 Energy 98/100 System Corruption 1% Temperature Cool (9) Movement Core (50) Location -8/Materials Parts ------- > --- POWER (1) -------- (None) > --- PROPULSION (4) --- (None) > --- UTILITY (3) ------ (None) > --- WEAPON (3) ------- (None) > --- INVENTORY (5) ---- Rocket Launcher Peak State ------------ > --- POWER ------------ Ion Engine > --- PROPULSION ------- Improved VTOL Module Improved VTOL Module Improved VTOL Module > --- UTILITY ---------- Small Storage Unit Sensor Array > --- WEAPON ----------- Improved Grenade Launcher Improved Grenade Launcher > --- INVENTORY -------- Ion Engine Heat Sink Improved Heat Sink Weight Redist. System Assault Rifle Light Assault Rifle [Rating: 21] Favorites ----------- Power Ion Engine Engine Ion Engine Propulsion Improved VTOL Module Treads Light Treads Wheel Wheel Hover Unit Aerolev Unit Flight Unit Improved VTOL Module Utility Small Storage Unit Device Improved Heat Sink Storage Small Storage Unit Weapon Improved Grenade Launcher Energy Gun Spread Laser Energy Cannon Particle Cannon Ballistic Gun Assault Rifle Launcher Improved Grenade Launcher Build | -11 -10 -9 -9 -8 ------- Run | Yrd Mat Mat Sto Mat Slots Evolved 4 | . . 2 . 2 Power . | . . . . . Propulsion 2 | . . 2 . . Utility 1 | . . . . 1 Weapon 1 | . . . . 1 Parts Attached 52 | 7 6 13 18 8 Power 9 | 1 2 1 4 1 Engine 9 | 1 2 1 4 1 Core . | . . . . . Reactor . | . . . . . Propulsion 12 | 2 2 4 4 . Treads 5 | . 2 . 3 . Leg . | . . . . . Wheel 2 | 2 . . . . Hover 1 | . . 1 . . Flight 4 | . . 3 1 . Utility 9 | 2 1 1 3 2 Device 7 | 1 1 1 2 2 Storage 2 | 1 . . 1 . Processor . | . . . . . Hackware . | . . . . . Protection . | . . . . . Artifact . | . . . . . Weapon 22 | 2 1 7 7 5 Energy Gun 1 | . . . 1 . Energy Cannon 5 | . . 2 . 3 Ballistic Gun 8 | 2 1 3 1 1 Ballistic Cannon . | . . . . . Launcher 8 | . . 2 5 1 Special Weapon . | . . . . . Impact Weapon . | . . . . . Slashing Weapon . | . . . . . Piercing Weapon . | . . . . . Special Melee Weapon . | . . . . . Unidentified Prototypes 3 | . . 2 . 1 Parts Lost 17 | . 1 . 11 5 Power 3 | . . . 2 1 Propulsion 6 | . 1 . 5 . Utility 3 | . . . 1 2 Weapon 5 | . . . 3 2 Highest Loss Streak 5 | . 1 . 5 4 To Critical Strikes . | . . . . . Average Slot Usage (%) 65 | . 98 80 66 14 Engine 9 | . 13 10 9 3 Treads 5 | . 8 2 6 . Wheel 4 | . 19 . . . Flight 9 | . . 26 14 . Device 9 | . 14 11 9 5 Storage 9 | . 14 11 9 . Energy Cannon 3 | . . 11 4 1 Ballistic Gun 7 | . 27 6 . 3 Launcher 6 | . . 1 12 . Naked Turns 213 | . . . 128 85 Heaviest Build 25 | 15 15 23 25 13 Greatest Support 60 | 20 40 20 60 9 Greatest Overweight (x) 4 | . 1 2 4 4 Average Overweight (x) . | . . . . . Largest Inventory Capacity 8 | 8 8 8 8 5 Average Capacity 7 | 7 8 8 7 5 Most Carried 8 | 5 8 8 8 5 Average Carried 5 | 3 5 6 6 3 Final Capacity 8 | 8 8 8 5 5 Final Carried 8 | 4 6 8 5 1 Class Distribution -------------------- 87% | Mutant 12% | Scavenger-Mutant Dominant Class ---------------- Mutant | -10/Materials Mutant | -9/Materials Mutant | -9/Storage Mutant | -8/Materials Resources | -11 -10 -9 -9 -8 ----------- Run | Yrd Mat Mat Sto Mat Matter Collected 849 | 276 190 70 283 30 Remotely . | . . . . . Salvage Created 1025 | 110 294 92 457 72 Parts 58 | 5 21 5 21 6 Haulers Intercepted 1 | . 1 . . . Recyclers Shooed 1 | . . . . 1 Parts Field Recycled . | . . . . . Retrieved Matter . | . . . . . Parts Self-Destructed . | . . . . . Prevented . | . . . . . Kills | -11 -10 -9 -9 -8 ------- Run | Yrd Mat Mat Sto Mat Combat Hostiles Destroyed 22 | . 7 1 13 1 Guns 7 | . 7 . . . Cannons 9 | . . 1 7 1 AOE 6 | . . . 6 . Classes Destroyed 8 | 2 4 1 . 1 Worker 1 | . . . . 1 Tunneler 1 | 1 . . . . Hauler 1 | . 1 . . . Recycler 1 | 1 . . . . Watcher 5 | . 1 3 1 . Swarmer 3 | . 3 . . . Grunt 11 | . 4 . 6 1 Sentry 8 | . . 1 7 . Best Kill Streak 4 | 2 4 1 4 1 Combat Bots Only 4 | . 4 1 4 1 Max Kills in Single Turn 2 | 2 1 1 2 1 Gunslinging . | . . . . . Exploded 2 | . . . 2 . Melee . | . . . . . Uniques/NPCs Destroyed . | . . . . . Combat | -11 -10 -9 -9 -8 -------- Run | Yrd Mat Mat Sto Mat Hostile Shots Fired 301 | . 59 13 140 89 Missed 90 | . 19 4 42 25 Damage Taken 3124 | . 446 133 1442 1103 Core 1013 | . 64 48 341 560 Absorbed by Shields . | . . . . . Core Remaining (%) 58 | 100 74 . 2 . Volleys Fired 83 | 1 23 13 39 7 Largest 2 | 2 2 2 2 2 Hottest 136 | 40 40 136 136 105 Shots Fired 157 | 2 46 25 72 12 Gun 50 | 2 46 2 . . Cannon 77 | . . 20 45 12 Launcher 30 | . . 3 27 . Special . | . . . . . Kinetic 50 | 2 46 2 . . Thermal 77 | . . 20 45 12 Explosive 30 | . . 3 27 . Electromagnetic . | . . . . . Robot Hit Streak 15 | 1 6 15 8 9 Robot Miss Streak 5 | . 3 5 2 3 Penetration Max . | . . . . . Secondary Targets 1 | . 1 . . . Max Gunslinging Chain 1 | . 1 . . . Shots Hit Robots 83 | 1 26 11 39 6 Core Hits 54 | 2 14 4 25 9 Critical Kills . | . . . . . Critical Parts Destroyed . | . . . . . Critical Strikes . | . . . . . Melee Attacks . | . . . . . Impact . | . . . . . Slashing . | . . . . . Piercing . | . . . . . Sneak Attacks . | . . . . . Combat Hostiles . | . . . . . Follow-up Attacks . | . . . . . Damage Inflicted 2254 | 27 349 306 1261 311 Guns 368 | 27 341 . . . Cannons 1038 | . . 208 594 236 Explosions 740 | . . 98 642 . Melee . | . . . . . Ramming 108 | . 8 . 25 75 Kinetic 368 | 27 341 . . . Thermal 1038 | . . 208 594 236 Explosive 740 | . . 98 642 . Electromagnetic . | . . . . . Impact . | . . . . . Slashing . | . . . . . Piercing . | . . . . . Highest Corruption 2 | . . . 2 1 Average Corruption 1 | . . . 2 1 Corruption Purged . | . . . . . Corruption Blocked . | . . . . . Effects 2 | . . . 1 1 Message Errors 1 | . . . . 1 Data Loss (major) 1 | . . . 1 . Overload Shots . | . . . . . Overflow Damage 75 | . . 11 64 . Projectiles 12 | . . . 12 . Explosions 63 | . . 11 52 . Melee . | . . . . . Knockbacks . | . . . . . Impact . | . . . . . Kinetic . | . . . . . Secondary . | . . . . . Self-Inflicted Damage 107 | . 4 . 72 31 Shots 2 | . . . 2 . Rammed 38 | . 1 . 11 26 Targets Rammed 38 | . 1 . 11 26 Kicked . | . . . . . Crushed . | . . . . . Highest Temperature 387 | . 11 379 306 387 Average Temperature 99 | . 5 104 110 100 Received Heat Transfer 1278 | . 222 36 561 459 Effects 1 | . . 1 . . Shutdowns 1 | . . 1 . . Siege Activations . | . . . . . Robots Corrupted . | . . . . . Combat Hostiles . | . . . . . Parts Fried . | . . . . . Impact Corruptions . | . . . . . Robots Melted . | . . . . . Combat Hostiles . | . . . . . Parts Melted 4 | . . 2 2 . Heat Transferred 1776 | . . 370 1073 333 Parts Sabotaged . | . . . . . Parts Stolen . | . . . . . Parts Stripped . | . . . . . Power Chain Reactions . | . . . . . Alert | -11 -10 -9 -9 -8 ------- Run | Yrd Mat Mat Sto Mat Peak Influence 607 | 10 275 251 607 322 Initial 232 | . 6 115 105 232 Average 290 | 1 98 179 412 261 Maximum Alert Level 2 | . 1 1 2 1 Low Security (%) 32 | 100 79 54 16 . Level 1 35 | . 20 45 23 100 Level 2 31 | . . . 60 . Level 3 . | . . . . . Level 4 . | . . . . . Level 5 . | . . . . . High Security . | . . . . . Max Security . | . . . . . Squads Dispatched 8 | . 3 . 4 1 Investigation 2 | . 1 . . 1 Extermination . | . . . . . Reinforcement 6 | . 2 . 4 . Assault . | . . . . . Garrison . | . . . . . Intercept . | . . . . . Searches Triggered . | . . . . . Construction Impeded . | . . . . . Haulers Reinforced . | . . . . . Active Scanning Responses . | . . . . . Cargo Convoy Interrupts . | . . . . . Stealth | -11 -10 -9 -9 -8 --------- Run | Yrd Mat Mat Sto Mat Distress Signals 8 | . 1 2 5 . Communications Jammed . | . . . . . Distress Signals . | . . . . . Times Spotted 68 | . 15 8 29 16 Peak Tracking Total 9 | . 6 3 7 9 Tactical Retreats 8 | . 1 . 6 1 Traps | -11 -10 -9 -9 -8 ------- Run | Yrd Mat Mat Sto Mat Traps Triggered 7 | . 3 . 4 . Indirectly . | . . . . . Trap Hack Attempts . | . . . . . Triggered . | . . . . . Disarmed . | . . . . . Reprogrammed . | . . . . . Reused . | . . . . . Traps Extracted . | . . . . . Installed . | . . . . . Triggered . | . . . . . Machines | -11 -10 -9 -9 -8 ---------- Run | Yrd Mat Mat Sto Mat Machines Disabled 9 | . 1 1 7 . Max in Single Turn 2 | . 1 1 2 . Machines Repaired . | . . . . . Machines Dismantled . | . . . . . Machines Sabotaged . | . . . . . Overloaded Fab Kills . | . . . . . Hacking | -11 -10 -9 -9 -8 --------- Run | Yrd Mat Mat Sto Mat Machines Accessed 6 | . 2 . 2 2 Terminals 5 | . 1 . 2 2 Fabricators . | . . . . . Repair Stations . | . . . . . Recycling Units 1 | . 1 . . . Scanalyzers . | . . . . . Garrison Access . | . . . . . Total Hacks 14 | . 3 . 4 7 Successful 7 | . 2 . 1 4 Failed 7 | . 1 . 3 3 Catastrophic 1 | . . . . 1 Database Lockouts . | . . . . . Manual . | . . . . . Terminals 13 | . 2 . 4 7 Fabricators . | . . . . . Repair Stations . | . . . . . Recycling Units 1 | . 1 . . . Scanalyzers . | . . . . . Garrison Access . | . . . . . Terminal Hacks 6 | . 1 . 1 4 Open Door 1 | . . . 1 . Branch Access Points 1 | . . . . 1 Alert Level 1 | . . . . 1 Locate Traps 1 | . 1 . . . Dispatch Records 1 | . . . . 1 Maintenance Status 1 | . . . . 1 Fabricator Hacks . | . . . . . Repair Station Hacks . | . . . . . Recycling Unit Hacks 1 | . 1 . . . Report Inventory 1 | . 1 . . . Scanalyzer . | . . . . . Garrison Access Hacks . | . . . . . Unauthorized Hacks . | . . . . . Terminals . | . . . . . Fabricators . | . . . . . Repair Stations . | . . . . . Recycling Units . | . . . . . Scanalyzers . | . . . . . Garrison Access . | . . . . . Data Cores Recovered . | . . . . . Used . | . . . . . Hacking Detections 4 | . . . 2 2 Full Trace Events 1 | . . . . 1 Feedback Events . | . . . . . Feedback Blocked . | . . . . . Robot Schematics Acquired . | . . . . . Robots Built . | . . . . . Authchips . | . . . . . Time . | . . . . . Total Robot Build Rating . | . . . . . Part Schematics Acquired . | . . . . . Parts Built . | . . . . . Authchips . | . . . . . Time . | . . . . . Total Part Build Rating . | . . . . . Parts Repaired . | . . . . . Time . | . . . . . Parts Recycled . | . . . . . Recycled Matter . | . . . . . Retrieved Matter . | . . . . . Retrieved Components . | . . . . . Parts Scanalyzed . | . . . . . Part Schematics Acquired . | . . . . . Parts Damaged . | . . . . . Bothacking | -11 -10 -9 -9 -8 ------------ Run | Yrd Mat Mat Sto Mat Used RIF Installer . | . . . . . Robots Hacked . | . . . . . Non-combat . | . . . . . Combat . | . . . . . Robot Hacks Applied . | . . . . . Relay Couplers Released . | . . . . . Fabnet Peak Effective % . | . . . . . Robots Rewired . | . . . . . Allies Hacked . | . . . . . Hacks Repelled . | . . . . . Allies | -11 -10 -9 -9 -8 -------- Run | Yrd Mat Mat Sto Mat Total Allies . | . . . . . Largest Group . | . . . . . Highest-Rated Group . | . . . . . Highest-Rated Ally . | . . . . . Total Orders . | . . . . . Ally Attacks . | . . . . . Total Damage . | . . . . . Kills . | . . . . . Allies Corrupted . | . . . . . Allies Melted . | . . . . . Intel | -11 -10 -9 -9 -8 ------- Run | Yrd Mat Mat Sto Mat Robot Analysis Total . | . . . . . Derelict Logs Recovered . | . . . . . Drone Launches . | . . . . . Drone Recoveries . | . . . . . Exploration | -11 -10 -9 -9 -8 ------------- Run | Yrd Mat Mat Sto Mat Turns Passed 1845 | 58 383 164 952 288 Spaces Moved 1433 | 49 278 90 670 346 Core 604 | 6 . . 252 346 Treads 167 | . 52 5 110 . Legs . | . . . . . Wheels 269 | 43 226 . . . Hover . | . . . . . Flight 393 | . . 85 308 . Fastest Speed 29 | 50 80 29 34 50 Average Speed 95 | 76 95 86 117 59 Slowest Speed 315 | 80 160 175 315 250 Overloaded Moves . | . . . . . Propulsion Burnouts . | . . . . . Robots Hopped . | . . . . . Cave-ins Triggered . | . . . . . Exploration Rate (%) 33 | 3 39 10 81 32 Regions Visited 4 Branch Regions 1 Pre-discovered Areas . | . . . . . Known Exits Taken . | . . . . . Unknown Exits Taken 4 | 1 1 1 1 . Scrap Searched . | . . . . . Spaces Dug 12 | . . 12 . . Terrain Destroyed 204 | . . 50 151 3 Melee . | . . . . . Projectile 3 | . . . . 3 AOE 201 | . . 50 151 . Terrain Rammed . | . . . . . Walls Destroyed . | . . . . . Machines Disabled . | . . . . . Actions | -11 -10 -9 -9 -8 --------- Run | Yrd Mat Mat Sto Mat Total 1741 | 66 351 150 756 418 Wait 83 | . 36 22 5 20 Move 1429 | 48 277 89 669 346 Hop . | . . . . . Pick Up 36 | 10 6 9 6 5 Fast Attach 17 | 1 1 1 12 2 Attach 25 | 6 4 6 3 6 Detach . | . . . . . Swap 10 | . 1 6 3 . Drop 20 | . 2 4 8 6 Fire 83 | 1 23 13 39 7 Melee . | . . . . . Ram 32 | . 1 . 5 26 Kick . | . . . . . Crush 6 | . . . 6 . Escape Stasis . | . . . . . Rewire . | . . . . . Trap . | . . . . . Miscellaneous . | . . . . . Route ------- -11/Scrapyard -10/Materials -9/Materials -9/Storage -8/Materials History --------- Turn | Location | Event 16 | -11/Scrapyard | Discovered new exit (range 15) 59 | -11/Scrapyard | Entered Materials 230 | -10/Materials | Discovered new exit (range 11) 309 | -10/Materials | Build established: Mutant 442 | -10/Materials | Entered another Materials area 442 | -9/Materials | Evolved 2 slots: Propulsion x2 553 | -9/Materials | Discovered new exit (range 11) 606 | -9/Materials | Entered Storage 830 | -9/Storage | Lost 5 parts (2p1n1u1w) 890 | -9/Storage | Core integrity fell below 50% 905 | -9/Storage | Discovered new exit (range 16) 1428 | -9/Storage | Released all parts (3) 1436 | -9/Storage | Core integrity fell below 20% 1452 | -9/Storage | Lost 4 parts (3n1w) 1558 | -9/Storage | Entered Materials 1558 | -8/Materials | Evolved 2 slots: Utility x1, Weapon x1 1744 | -8/Materials | Core integrity fell below 50% 1785 | -8/Materials | Core integrity fell below 20% 1796 | -8/Materials | Lost 4 parts (2u2w) 1846 | -8/Materials | Destroyed by G-47 Trooper with Particle Gun Last Messages --------------- Retrieving dispatch records... Found 26 active squads: 10x Security 5x Surveillance 5x Patrol 6x Transport ALERT: Suspicious activity at Terminal M009. Dispatching Investigation squad. Terminal unresponsive. C-30 ARC bursts open, deploying its payload. H-55 Commando unfolds itself. Penetrated by Slug. Terminal disabled. K-01 Serf collects debris. Penetrated by Slug. K-01 Serf collects debris. Slug penetrates K-01 Serf. O-16 Technician: "IFF HANDSHAKE FAILED. SECURING TERMINAL." K-01 Serf collects debris. Map ----- +----------------------------------------------------+ | ???????????????????????????????? | | ???????????????????????????????? | | ???????????????????????????????? | | ???????????????????????????????? | | ???????????????????????????????? | | ???????????????????????????????? | | ???????????????????????????????? | | ???????????????????????????????? | | ???????????????????????????????? | | ???????????????????????????????? | | ???????????????????????????????? | | ???????????????????????????????? | | ?????????????????????????+?????? | | ????????????????????????? ?????? | | ????????????????????????? #????? | | #########???????????????? #????? | | !#???????????????? #????? | | """"" #???????????????# #????? | | """""" =#???????????##### #????? | | " """ #???????????? #????? | | #????????????#g #????? | | ##+######????????????# lg #????? | | #??????????????# #????? | | #?????"????????# #????? | | #?????""???????# #????? | | ### # ?????""??????# @#????? | | ??# # ????? ????# #????? | | ??# # ?????? ???#o #????? | | ### ###+########+###a #????? | | #????? | | #????? | | #????? | | #### ######################????? | | ???# #??????# # ! #????? | | ???# #??????# # #????? | | ???# #??????# """# ] #????? | | ???# #??????# """# ] #????? | | ???#+######?# """# #????? | | ??? ?# # #????? | | ???? ####+######+####???? | | ?????"" """ # #???? | | #????"" """ + #???? | | #????"" """ # #???? | | #??? # ############???? | | #?? ?# # #????? | | #?# ?# #% #????? | | #?########??# + #????? | | #???????????# # #????? | | #???????????# ###########????? | | #??????????## ##?????????????? | +----------------------------------------------------+ Best States ------------- Heat Dissipation 50 Energy Generation 12 Energy Capacity 265 Matter Stores 300 Matter Capacity 300 Sight Range 16 Robot Scan Range 14 Terrain Scan Range 16 Terrain Scan Density 10 Additional Mass Support 6 Evasion (%) 64 Recoil Reduction 3 Item Schematics ----------------- None Robot Schematics ------------------ None Fabricated ------------ Nothing Alien Tech Used ----------------- None Achievements -------------- Close Call Challenges ------------ None Game ------ Seed AccelerationGrenadeShredder Manual? 0 Play Time 00:40:54 Cumulative 4.4 hours Start 2024.04.06 @ 23:23:49 End 2024.04.08 @ 22:10:54 Sessions 2 Manual Loads 0 Difficulty Rogue Special Mode None Game No. 4 Rogue 4 Adventurer 0 Explorer 0 Win Type - Total 0 Types 0/0/0/0/0/0/0/0/0 Lore% 5 Gallery% 12 Achievement% 12 Wizard Run 0 Options --------- Layout 1 ASCII 0 Keyboard 0 Movement Mouse Keybinds 0 Fullscreen 1 Font 24/Smallcaps Map View 50x35 Zoom Use 0% Tactical HUD 0 Map Filters NONE Filters NONE Steam 1 RUN: 5b9f80bb-2c2b-4829-90dc-44ab5044f6e0